fUST/lending_fUST_20240820
["ID","MTS","AMOUNT","RATE_DAILY","PERIOD"]
[335380046,1724169045005,-500.0,0.00016712,2]
[335380047,1724169045014,-500.0,0.00016712,2]
[335380048,1724169045024,-500.0,0.00016712,2]
[335380049,1724169045033,-500.0,0.00016712,2]
[335380050,1724169045043,-503.28137629,0.00016712,2]
[335380051,1724169045052,-500.0,0.00016712,2]
[335380052,1724169045061,-500.0,0.00016712,2]
[335380053,1724169045072,-500.0,0.00016712,2]
[335380054,1724169045082,-500.0,0.00016712,2]
[335380055,1724169045094,-500.0,0.00016712,2]
[335380056,1724169045104,-500.0,0.00016712,2]
[335380057,1724169045114,-274.89323136,0.00016712,2]
[335380058,1724169045123,-500.0,0.00016712,2]
[335380059,1724169045132,-500.0,0.00016712,2]
[335380060,1724169045142,-500.0,0.00016712,2]
[335380061,1724169045152,-500.0,0.00016712,2]
[335380062,1724169045163,-500.0,0.00016712,2]
[335380063,1724169045173,-500.0,0.00016712,2]
[335380064,1724169045182,-531.59146802,0.00016712,2]
[335380065,1724169045191,-500.0,0.00016712,2]
[335380066,1724169045201,-500.0,0.00016712,2]
[335380067,1724169045210,-288.91432232,0.00016712,2]
[335380068,1724169045219,-508.78933289,0.00016712,2]
[335380069,1724169045230,-500.0,0.00016712,2]
[335380070,1724169045239,-500.0,0.00016712,2]
[335380071,1724169045249,-500.0,0.00016712,2]
[335380072,1724169045259,-500.0,0.00016712,2]
[335380073,1724169045269,-500.0,0.00016712,2]
[335380074,1724169045279,-500.0,0.00016712,2]
[335380075,1724169045288,-500.0,0.00016712,2]
[335380076,1724169045298,-267.91929941,0.00016712,2]
[335380077,1724169045307,-500.0,0.00016712,2]
[335380078,1724169045316,-500.0,0.00016712,2]
[335380079,1724169045325,-500.0,0.00016712,2]
[335380080,1724169045422,-500.0,0.00016712,2]
[335380081,1724169045432,-500.0,0.00016712,2]
[335380082,1724169045441,-200.0,0.00016712,2]
[335380083,1724169045451,-500.0,0.00016712,2]
[335380084,1724169045461,-506.36308037,0.00016712,2]
[335380085,1724169045470,-178.39286826,0.00016712,2]
[335380086,1724169045479,-500.0,0.00016712,2]
[335380087,1724169045489,-244.35180494,0.00016712,2]
[335380088,1724169045498,-515.07755243,0.00016712,2]
[335380089,1724169045507,-500.0,0.00016712,2]
[335380090,1724169045517,-519.63962823,0.00016712,2]
[335380091,1724169045526,-500.0,0.00016712,2]
[335380092,1724169045535,-320.77073065,0.00016712,2]
[335380093,1724169045545,-500.0,0.00016712,2]
[335380094,1724169045554,-510.93716268,0.00016712,2]
[335380095,1724169045563,-509.28285814,0.00016712,2]
[335380096,1724169045572,-500.0,0.00016712,2]
[335380097,1724169045581,-605.38962245,0.00016712,2]
[335380098,1724169045590,-503.33604521,0.00016712,2]
[335380099,1724169045599,-521.59163149,0.00016712,2]
[335380100,1724169045608,-503.08874414,0.00016712,2]
[335380101,1724169045618,-500.0,0.00016712,2]
[335380102,1724169045627,-500.0,0.00016712,2]
[335380103,1724169045636,-500.0,0.00016712,2]
[335380104,1724169045645,-504.27669936,0.00016712,2]
[335380105,1724169045654,-515.71552506,0.00016712,2]
[335380106,1724169045663,-500.0,0.00016712,2]
[335380107,1724169045672,-500.0,0.00016712,2]
[335380108,1724169045681,-500.0,0.00016712,2]
[335380109,1724169045690,-500.0,0.00016712,2]
[335380110,1724169045699,-500.0,0.00016712,2]
[335380111,1724169045708,-500.0,0.00016712,2]
[335380112,1724169045717,-237.0707362,0.00016712,2]
[335380113,1724169045726,-388.06328781,0.00016712,2]
[335380114,1724169045736,-500.0,0.00016712,2]
[335380115,1724169045746,-500.0,0.00016712,2]
[335380116,1724169045756,-500.0,0.00016712,2]
[335380117,1724169045766,-500.0,0.00016712,2]
[335380118,1724169045776,-500.0,0.00016712,2]
[335380119,1724169045785,-500.0,0.00016712,2]
[335380120,1724169045795,-500.0,0.00016712,2]
[335380121,1724169045804,-500.0,0.00016712,2]
[335380122,1724169045814,-500.0,0.00016712,2]
[335380123,1724169045823,-500.0,0.00016712,2]
[335380124,1724169045833,-500.0,0.00016712,2]
[335380125,1724169045844,-500.0,0.00016712,2]
[335380126,1724169045854,-500.0,0.00016712,2]
[335380127,1724169045864,-500.0,0.00016712,2]
[335380128,1724169045874,-500.0,0.00016712,2]
[335380129,1724169045884,-500.0,0.00016712,2]
[335380131,1724169045894,-500.0,0.00016712,2]
[335380132,1724169045904,-539.07605786,0.00016712,2]
[335380133,1724169045914,-500.0,0.00016712,2]
[335380134,1724169045923,-500.0,0.00016712,2]
[335380135,1724169045933,-504.44859994,0.00016712,2]
[335380136,1724169045943,-502.83,0.00016712,2]
[335380138,1724169045953,-520.75865901,0.00016712,2]
[335380139,1724169045962,-1217.71,0.00016712,2]
[335380140,1724169045972,-500.0,0.00016712,2]
[335380141,1724169045982,-500.0,0.00016712,2]
[335380142,1724169045991,-500.0,0.00016712,2]
[335380143,1724169046001,-500.0,0.00016712,2]
[335380144,1724169046010,-500.0,0.00016712,2]
[335380145,1724169046020,-500.0,0.00016712,2]
[335380146,1724169046030,-500.0,0.00016712,2]
[335380147,1724169046040,-500.0,0.00016712,2]
[335380148,1724169046049,-500.0,0.00016712,2]
[335380149,1724169046059,-500.0,0.00016712,2]
[335380151,1724169046069,-500.0,0.00016712,2]
[335380153,1724169046079,-500.0,0.00016712,2]
[335380154,1724169046090,-637.76510282,0.00016712,2]
[335380155,1724169046101,-500.0,0.00016712,2]
[335380156,1724169046110,-503.27008819,0.00016712,2]
[335380158,1724169046120,-500.0,0.00016712,2]
[335380160,1724169046130,-500.0,0.00016712,2]
[335380162,1724169046139,-500.0,0.00016712,2]
[335380164,1724169046149,-500.0,0.00016712,2]
[335380166,1724169046160,-500.0,0.00016712,2]
[335380168,1724169046170,-500.0,0.00016712,2]
[335380171,1724169046179,-500.0,0.00016712,2]
[335380174,1724169046189,-273.89970954,0.00016712,2]
[335380177,1724169046199,-500.0,0.00016712,2]
[335380180,1724169046209,-500.0,0.00016712,2]
[335380183,1724169046220,-500.0,0.00016712,2]
[335380186,1724169046230,-500.0,0.00016712,2]
[335380189,1724169046241,-500.0,0.00016712,2]
[335380192,1724169046251,-500.0,0.00016712,2]
[335380194,1724169046261,-500.0,0.00016712,2]
[335380196,1724169046271,-500.0,0.00016712,2]
[335380197,1724169046280,-500.0,0.00016712,2]
[335380198,1724169046290,-500.0,0.00016712,2]
[335380199,1724169046301,-500.0,0.00016712,2]
[335380200,1724169046311,-500.0,0.00016712,2]
[335380201,1724169046322,-500.0,0.00016712,2]
[335380202,1724169046332,-500.0,0.00016712,2]
[335380203,1724169046341,-500.0,0.00016712,2]
[335380204,1724169046350,-500.0,0.00016712,2]
[335380205,1724169046360,-436.45933866,0.00016712,2]
[335380206,1724169046370,-500.0,0.00016712,2]
[335380207,1724169046379,-500.0,0.00016712,2]
[335380208,1724169046389,-598.27507587,0.00016712,2]
[335380209,1724169046399,-500.0,0.00016712,2]
[335380210,1724169046409,-500.0,0.00016712,2]
[335380211,1724169046418,-500.0,0.00016712,2]
[335380212,1724169046429,-500.0,0.00016712,2]
[335380213,1724169046439,-513.20656849,0.00016712,2]
[335380214,1724169046449,-500.0,0.00016712,2]
[335380215,1724169046459,-500.0,0.00016712,2]
[335380216,1724169046470,-500.0,0.00016712,2]
[335380217,1724169046480,-500.44561053,0.00016712,2]
[335380218,1724169046489,-500.0,0.00016712,2]
[335380219,1724169046499,-500.0,0.00016712,2]
[335380220,1724169046509,-200.0,0.00016773,2]
[335380221,1724169046518,-200.0,0.00016773,2]
[335380222,1724169046528,-500.0,0.00016985,2]
[335380223,1724169046538,-2128.23,0.00016985,2]
[335380224,1724169046548,-500.0,0.00016986,2]
[335380225,1724169046557,-460.07984016,0.00016986,2]
[335380226,1724169046567,-500.0,0.00016986,2]
[335380227,1724169046576,-500.0,0.00016986,2]
[335380228,1724169046586,-500.0,0.00016986,2]
[335380229,1724169046595,-500.0,0.00016986,2]
[335380230,1724169046612,-500.0,0.00016986,2]
[335380231,1724169046623,-514.09,0.00016986,2]
[335380232,1724169046632,-500.0,0.00016986,2]
[335380233,1724169046642,-500.0,0.00016986,2]
[335380234,1724169046654,-153.08246531,0.00016986,2]
[335380236,1724169046664,-500.0,0.00016986,2]
[335380237,1724169046673,-500.0,0.00016986,2]
[335380238,1724169046685,-500.0,0.00016986,2]
[335380239,1724169046697,-389.58728103,0.00016986,2]
[335380240,1724169046707,-507.00026044,0.00016986,2]
[335380241,1724169046716,-500.0,0.00016986,2]
[335380242,1724169046725,-500.0,0.00016986,2]
[335380243,1724169046734,-505.84147928,0.00016986,2]
[335380244,1724169046744,-270.70089951,0.00016986,2]
[335380245,1724169046754,-500.0,0.00016986,2]
[335380246,1724169046764,-500.0,0.00016986,2]
[335380247,1724169046774,-514.21308514,0.00016986,2]
[335380248,1724169046784,-500.0,0.00016986,2]
[335380249,1724169046793,-500.0,0.00016986,2]
[335380250,1724169046803,-505.91622374,0.00016986,2]
[335380251,1724169046813,-500.0,0.00016986,2]
[335380252,1724169046823,-500.0,0.00016986,2]
[335380253,1724169046833,-510.49795534,0.00016986,2]
[335380254,1724169046843,-500.0,0.00016986,2]
[335380255,1724169046852,-500.0,0.00016986,2]
[335380256,1724169046862,-500.0,0.00016986,2]
[335380257,1724169046873,-500.0,0.00016986,2]
[335380258,1724169046883,-500.0,0.00016986,2]
[335380260,1724169046892,-277.72756456,0.00016986,2]
[335380262,1724169046902,-500.0,0.00016986,2]
[335380264,1724169046911,-500.0,0.00016986,2]
[335380265,1724169046921,-500.0,0.00016986,2]
[335380266,1724169046931,-507.3705587,0.00016986,2]
[335380267,1724169046941,-500.0,0.00016986,2]
[335380268,1724169046950,-500.0,0.00016986,2]
[335380269,1724169046959,-501.86255384,0.00016986,2]
[335380270,1724169046969,-264.55254378,0.00016986,2]
[335380271,1724169046979,-500.0,0.00016986,2]
[335380272,1724169046988,-500.0,0.00016986,2]
[335380273,1724169046999,-505.01568702,0.00016986,2]
[335380274,1724169047009,-503.79179135,0.00016986,2]
[335380275,1724169047019,-503.96616619,0.00016986,2]
[335380276,1724169047029,-500.0,0.00016986,2]
[335380277,1724169047039,-500.0,0.00016986,2]
[335380278,1724169047050,-500.0,0.00016986,2]
[335380279,1724169047059,-500.0,0.00016986,2]
[335380280,1724169047069,-500.0,0.00016986,2]
[335380281,1724169047080,-500.0,0.00016986,2]
[335380282,1724169047090,-500.0,0.00016986,2]
[335380283,1724169047100,-504.46954326,0.00016986,2]
[335380284,1724169047110,-500.0,0.00016986,2]
[335380285,1724169047120,-500.0,0.00016986,2]
[335380286,1724169047129,-500.0,0.00016986,2]
[335380287,1724169047141,-500.0,0.00016986,2]
[335380288,1724169047150,-538.4638379,0.00016986,2]
[335380289,1724169047160,-500.0,0.00016986,2]
[335380290,1724169047170,-500.0,0.00016986,2]
[335380291,1724169047179,-500.0,0.00016986,2]
[335380292,1724169047189,-500.0,0.00016986,2]
[335380293,1724169047199,-2000.0,0.00016986,2]
[335380294,1724169047209,-500.0,0.00016986,2]
[335380295,1724169047218,-500.0,0.00016986,2]
[335380296,1724169047228,-502.98749075,0.00016986,2]
[335380297,1724169047238,-500.0,0.00016986,2]
[335380298,1724169047249,-500.0,0.00016986,2]
[335380299,1724169047258,-500.0,0.00016986,2]
[335380300,1724169047267,-500.0,0.00016986,2]
[335380301,1724169047277,-500.0,0.00016986,2]
[335380302,1724169047287,-500.0,0.00016986,2]
[335380303,1724169047296,-500.0,0.00016986,2]
[335380304,1724169047305,-500.0,0.00016986,2]
[335380305,1724169047315,-500.0,0.00016986,2]
[335380306,1724169047325,-500.0,0.00016986,2]
[335380307,1724169047334,-500.0,0.00016986,2]
[335380308,1724169047344,-500.0,0.00016986,2]
[335380309,1724169047354,-352.03186202,0.00016986,2]
[335380310,1724169047363,-541.8987227,0.00016986,2]
[335380311,1724169047372,-500.0,0.00016986,2]
[335380312,1724169047381,-581.82,0.00016986,2]
[335380313,1724169047391,-500.0,0.00016986,2]
[335380314,1724169047400,-571.95315328,0.00016986,2]
[335380315,1724169047410,-500.0,0.00016986,2]
[335380316,1724169047419,-500.0,0.00016986,2]
[335380317,1724169047428,-500.0,0.00016986,2]
[335380318,1724169047438,-348.0316953,0.00016986,2]
[335380319,1724169047447,-200.0,0.00016986,2]
[335380320,1724169047456,-500.0,0.00016986,2]
[335380321,1724169047466,-500.0,0.00016986,2]
[335380322,1724169047475,-500.0,0.00016986,2]
[335380323,1724169047484,-503.65840055,0.00016986,2]
[335380324,1724169047494,-500.0,0.00016986,2]
[335380325,1724169047503,-500.0,0.00016986,2]
[335380326,1724169047512,-500.0,0.00016986,2]
[335380327,1724169047521,-500.0,0.00016986,2]
[335380328,1724169047531,-500.0,0.00016986,2]
[335380329,1724169047540,-500.0,0.00016986,2]
[335380330,1724169047550,-500.0,0.00016986,2]
[335380331,1724169047559,-500.0,0.00016986,2]
[335380332,1724169047569,-500.0,0.00016986,2]
[335380333,1724169047579,-502.83,0.00016986,2]
[335380334,1724169047588,-1217.71,0.00016986,2]
[335380335,1724169047598,-500.0,0.00016986,2]
[335380336,1724169047607,-500.0,0.00016986,2]
[335380337,1724169047617,-500.0,0.00016986,2]
[335380338,1724169047626,-500.0,0.00016986,2]
[335380339,1724169047635,-500.0,0.00016986,2]
[335380340,1724169047644,-500.0,0.00016986,2]
[335380341,1724169047653,-504.54735381,0.00016986,2]
[335380342,1724169047662,-500.0,0.00016986,2]
[335380343,1724169047671,-500.0,0.00016986,2]
[335380344,1724169047681,-500.0,0.00016986,2]
[335380345,1724169047690,-500.0,0.00016986,2]
[335380346,1724169047700,-500.0,0.00016986,2]
[335380347,1724169047709,-500.0,0.00016986,2]
[335380348,1724169047719,-500.0,0.00016986,2]
[335380349,1724169047728,-506.59191739,0.00016986,2]
[335380350,1724169047738,-507.17862359,0.00016986,2]
[335380351,1724169047747,-500.0,0.00016986,2]
[335380352,1724169047757,-500.0,0.00016986,2]
[335380353,1724169047766,-500.0,0.00016986,2]
[335380354,1724169047776,-560.34,0.00016986,2]
[335380355,1724169047785,-311.16,0.00016986,2]
[335380356,1724169047794,-500.0,0.00016986,2]
[335380357,1724169047890,-491.64530042,0.00016986,2]
[335380358,1724169047900,-500.0,0.00016986,2]
[335380359,1724169047910,-500.0,0.00016986,2]
[335380360,1724169047920,-500.0,0.00016986,2]
[335380361,1724169047929,-507.67853733,0.00016986,2]
[335380362,1724169047939,-500.0,0.00016986,2]
[335380363,1724169047948,-500.0,0.00016986,2]
[335380364,1724169047958,-500.0,0.00016986,2]
[335380365,1724169047968,-500.0,0.00016986,2]
[335380366,1724169047977,-2128.23,0.00017259,2]
[335380367,1724169047987,-527.08628866,0.0001726,2]
[335380368,1724169047996,-500.0,0.0001726,2]
[335380369,1724169048006,-514.09,0.0001726,2]
[335380370,1724169048015,-565.7674898,0.0001726,2]
[335380371,1724169048025,-500.0,0.0001726,2]
[335380372,1724169048035,-500.0,0.0001726,2]
[335380373,1724169048044,-500.0,0.0001726,2]
[335380374,1724169048054,-500.0,0.0001726,2]
[335380375,1724169048063,-500.0,0.0001726,2]
[335380376,1724169048075,-165.22248386,0.0001726,2]
[335380377,1724169048085,-500.0,0.0001726,2]
[335380378,1724169048094,-640.5656478,0.0001726,2]
[335380379,1724169048104,-505.72707702,0.0001726,2]
[335380380,1724169048115,-500.0,0.0001726,2]
[335380381,1724169048123,-500.0,0.0001726,2]
[335380382,1724169048133,-500.0,0.0001726,2]
[335380383,1724169048142,-394.39263547,0.0001726,2]
[335380384,1724169048153,-500.0,0.0001726,2]
[335380385,1724169048164,-2000.0,0.0001726,2]
[335380386,1724169048174,-500.0,0.0001726,2]
[335380387,1724169048183,-500.0,0.0001726,2]
[335380388,1724169048193,-500.0,0.0001726,2]
[335380389,1724169048202,-264.61368154,0.0001726,2]
[335380390,1724169048212,-500.0,0.0001726,2]
[335380391,1724169048221,-500.0,0.0001726,2]
[335380392,1724169048232,-500.0,0.0001726,2]
[335380393,1724169048242,-500.0,0.0001726,2]
[335380394,1724169048251,-500.0,0.0001726,2]
[335380395,1724169048261,-500.0,0.0001726,2]
[335380396,1724169048271,-500.0,0.0001726,2]
[335380397,1724169048281,-500.0,0.0001726,2]
[335380398,1724169048290,-264.5246224,0.0001726,2]
[335380399,1724169048300,-201.80370868,0.0001726,2]
[335380400,1724169048310,-500.0,0.0001726,2]
[335380401,1724169048320,-500.0,0.0001726,2]
[335380402,1724169048331,-500.0,0.0001726,2]
[335380403,1724169048340,-500.0,0.0001726,2]
[335380404,1724169048349,-500.0,0.0001726,2]
[335380405,1724169048359,-500.0,0.0001726,2]
[335380406,1724169048368,-505.55852809,0.0001726,2]
[335380407,1724169048378,-291.04990297,0.0001726,2]
[335380408,1724169048388,-500.0,0.0001726,2]
[335380409,1724169048398,-502.83,0.0001726,2]
[335380410,1724169048407,-1217.71,0.0001726,2]
[335380411,1724169048416,-500.0,0.0001726,2]
[335380412,1724169048426,-500.0,0.0001726,2]
[335380413,1724169048435,-308.58,0.0001726,2]
[335380414,1724169048445,-500.0,0.0001726,2]
[335380415,1724169048455,-500.0,0.0001726,2]
[335380416,1724169048465,-506.03153066,0.0001726,2]
[335380417,1724169048475,-500.0,0.0001726,2]
[335380418,1724169048484,-500.0,0.0001726,2]
[335380419,1724169048494,-300.0,0.000175,7]
[335380420,1724169048503,-500.0,0.00017533,2]
[335380421,1724169048513,-492.14332959,0.00017534,2]
[335380422,1724169048523,-514.09,0.00017534,2]
[335380423,1724169048533,-500.0,0.00017534,2]
[335380424,1724169048544,-500.0,0.00017534,2]
[335380425,1724169048554,-500.0,0.00017534,2]
[335380426,1724169048564,-238.41355473,0.00017534,2]
[335380427,1724169048573,-1765.31467839,0.00017534,2]
[335380428,1724169048584,-500.0,0.00017534,2]
[335380429,1724169048593,-500.0,0.00017534,2]
[335380430,1724169048609,-500.0,0.00017534,2]
[335380431,1724169048619,-500.0,0.00017534,2]
[335380432,1724169048629,-500.0,0.00017534,2]
[335380433,1724169048640,-500.0,0.00017534,2]
[335380434,1724169048649,-500.0,0.00017534,2]
[335380435,1724169048664,-609.26081606,0.00017534,2]
[335380436,1724169048674,-500.0,0.00017534,2]
[335380437,1724169048684,-500.0,0.00017534,2]
[335380438,1724169048694,-500.0,0.00017534,2]
[335380439,1724169048706,-502.83,0.00017534,2]
[335380440,1724169048716,-1217.71,0.00017534,2]
[335380441,1724169048726,-500.0,0.00017534,2]
[335380442,1724169048735,-500.0,0.00017534,2]
[335380443,1724169048745,-500.0,0.00017534,2]
[335380444,1724169048754,-500.0,0.00017534,2]
[335380445,1724169048764,-500.0,0.00017534,2]
[335380446,1724169048774,-2128.23,0.00017807,2]
[335380447,1724169048783,-514.09,0.00017808,2]
[335380448,1724169048793,-500.0,0.00017808,2]
[335380449,1724169048803,-500.0,0.00017808,2]
[335380450,1724169048813,-500.0,0.00017808,2]
[335380451,1724169048822,-500.0,0.00017808,2]
[335380452,1724169048833,-500.0,0.00017808,2]
[335380453,1724169048844,-500.0,0.00017808,2]
[335380454,1724169048854,-500.0,0.00017808,2]
[335380455,1724169048864,-500.0,0.00017808,2]
[335380456,1724169048875,-500.0,0.00017808,2]
[335380457,1724169048884,-279.78,0.00017808,2]
[335380458,1724169048895,-502.83,0.00017808,2]
[335380459,1724169048905,-1217.71,0.00017808,2]
[335380460,1724169048916,-500.0,0.00017808,2]
[335380461,1724169048926,-211.16,0.00017808,2]
[335380462,1724169048936,-500.0,0.00017808,2]
[335380463,1724169048945,-500.0,0.00017808,2]
[335380464,1724169048955,-533.0,0.00017909,2]
[335380465,1724169048966,-514.09,0.00018082,2]
[335380466,1724169048975,-500.0,0.00018082,2]
[335380467,1724169048985,-500.0,0.00018082,2]
[335380468,1724169048995,-500.0,0.00018082,2]
[335380469,1724169049005,-421.88257582,0.00018082,2]
[335380470,1724169049015,-500.0,0.00018082,2]
[335380471,1724169049026,-500.0,0.00018082,2]
[335380472,1724169049036,-500.0,0.00018082,2]
[335380473,1724169049047,-500.0,0.00018082,2]
[335380474,1724169049057,-502.83,0.00018082,2]
[335380475,1724169049066,-1217.71,0.00018082,2]
[335380476,1724169049077,-500.0,0.00018082,2]
[335380477,1724169049087,-400.0,0.00018142,2]
[335380478,1724169049099,-514.09,0.00018356,2]
[335380479,1724169049109,-500.0,0.00018356,2]
[335380480,1724169049118,-500.0,0.00018356,2]
[335380481,1724169049146,-500.0,0.00018356,2]
[335380482,1724169049155,-500.0,0.00018356,2]
[335380483,1724169049164,-500.0,0.00018356,2]
[335380484,1724169049176,-500.0,0.00018356,2]
[335380485,1724169049186,-500.0,0.00018356,2]
[335380486,1724169049195,-502.83,0.00018356,2]
[335380487,1724169049205,-1217.71,0.00018356,2]
[335380488,1724169049215,-500.0,0.00018356,2]
[335380489,1724169049225,-500.0,0.00018411,2]
[335380490,1724169049234,-514.09,0.0001863,2]
[335380491,1724169049245,-500.0,0.0001863,2]
[335380492,1724169049255,-500.0,0.0001863,2]
[335380493,1724169049265,-164.62635721,0.0001863,2]
[335380494,1724169049276,-500.0,0.0001863,2]
[335380495,1724169049286,-500.0,0.0001863,2]
[335380496,1724169049296,-500.0,0.0001863,2]
[335380497,1724169049306,-502.83,0.0001863,2]
[335380498,1724169049317,-1217.71,0.0001863,2]
[335380499,1724169049327,-184.63787141,0.0001863,2]
[335380500,1724169049337,-431.32155237,0.00018643,2]
[335380501,1724169049347,-150.112234,0.000187,2]
[335380502,1724169049357,-514.09,0.00018904,2]
[335380503,1724169049367,-514.44719435,0.00018904,2]
[335380504,1724169049376,-500.0,0.00018904,2]
[335380505,1724169049385,-500.0,0.00018904,2]
[335380506,1724169049396,-500.0,0.00018904,2]
[335380507,1724169049407,-500.0,0.00018904,2]
[335380508,1724169049417,-502.83,0.00018904,2]
[335380509,1724169049426,-1217.71,0.00018904,2]
[335380510,1724169049436,-500.0,0.00019036,2]
[335380511,1724169049446,-500.0,0.00019124,2]
[335380512,1724169049456,-514.09,0.00019178,2]
[335380513,1724169049466,-500.0,0.00019178,2]
[335380514,1724169049476,-194.4686826,0.00019178,2]
[335380515,1724169049486,-500.0,0.00019178,2]
[335380516,1724169049496,-633.84608207,0.00019178,2]
[335380517,1724169049505,-502.83,0.00019178,2]
[335380518,1724169049515,-1217.71,0.00019178,2]
[335380519,1724169049524,-164.490179,0.00019178,2]
[335380520,1724169049534,-269.634738,0.00019178,2]
[335380521,1724169049544,-251.0,0.00019178,2]
[335380522,1724169049553,-203.497918,0.00019178,2]
[335380523,1724169049562,-632.62162474,0.00019183,2]
[335380524,1724169049572,-500.0,0.00019199,2]
[335380525,1724169049582,-500.0,0.00019199,2]
[335380526,1724169049592,-2128.23,0.00019199,2]
[335380527,1724169049602,-2128.23,0.00019199,2]
[335380528,1724169049612,-1008.68,0.000192,2]
[335380529,1724169049627,-4755.18,0.000192,2]
[335380530,1724169049639,-61833.19,0.000192,2]
[335380531,1724169049648,-314.19,0.000192,2]
[335380532,1724169049658,-546.05318971,0.00019251,2]
[335380533,1724169049668,-514.09,0.00019452,2]
[335380534,1724169049677,-500.0,0.00019452,2]
[335380535,1724169049687,-500.0,0.00019452,2]
[335380536,1724169049696,-502.83,0.00019452,2]
[335380537,1724169049706,-1217.71,0.00019452,2]
[335380538,1724169049716,-533.0,0.00019463,2]
[335380539,1724169049725,-221295.17005,0.00019725,2]
[335380540,1724169049735,-514.09,0.00019726,2]
[335380541,1724169049744,-500.0,0.00019726,2]
[335380542,1724169049753,-500.0,0.00019726,2]
[335380543,1724169049764,-502.83,0.00019726,2]
[335380544,1724169049774,-1217.71,0.00019726,2]
[335380545,1724169049784,-150.112233,0.000198,2]
[335380546,1724169049794,-300.68179885,0.0002,2]
[335380547,1724169049804,-514.09,0.0002,2]
[335380548,1724169049814,-500.0,0.0002,2]
[335380549,1724169049824,-500.0,0.0002,2]
[335380550,1724169049834,-502.83,0.0002,2]
[335380551,1724169049843,-1217.71,0.0002,2]
[335380552,1724169049853,-503.32049717,0.00020116,2]
[335380553,1724169049862,-500.0,0.0002013,2]
[335380554,1724169049872,-600.0,0.00020146,2]
[335380555,1724169049886,-514.09,0.00020273,2]
[335380556,1724169049896,-500.0,0.00020273,2]
[335380557,1724169049906,-500.0,0.00020273,2]
[335380558,1724169049915,-502.83,0.00020273,2]
[335380559,1724169049925,-1217.71,0.00020273,2]
[335380560,1724169049935,-2128.23,0.00020546,2]
[335380561,1724169049945,-514.09,0.00020547,2]
[335380562,1724169049954,-500.0,0.00020547,2]
[335380563,1724169049964,-500.0,0.00020547,2]
[335380564,1724169049974,-502.83,0.00020547,2]
[335380565,1724169049983,-1217.71,0.00020547,2]
[335380566,1724169049993,-928.685114,0.00020548,2]
[335380567,1724169050002,-431.32155237,0.00020675,2]
[335380568,1724169050011,-464.025991,0.00020707,2]
[335380569,1724169050021,-500.0,0.0002082,2]
[335380570,1724169050031,-514.09,0.00020821,2]
[335380571,1724169050040,-500.0,0.00020821,2]
[335380572,1724169050049,-500.0,0.00020821,2]
[335380573,1724169050058,-502.83,0.00020821,2]
[335380574,1724169050068,-1217.71,0.00020821,2]
[335380575,1724169050081,-150.112233,0.00021,2]
[335380576,1724169050091,-150.0,0.00021,2]
[335380577,1724169050101,-2500.0,0.00021,2]